Cogmind - Beta 13 @@@ ROGUE MODE // 2024.04.27 @ 18:13:31 Player: Zaros426 Result: Destroyed by Y-45 Defender with Heavy Assault Rifle Performance ------------- Evolutions (0) 0 Regions Visited (2) 400 Robots Destroyed (52) 260 Value Destroyed (1094) 1094 Prototype IDs (2) 40 Alien Tech Used (0) 0 Bonus (27) 27 TOTAL SCORE: 1821 Bonus ------- High Alert Combat Kills 27 Cogmind --------- Core Integrity 0/250 Matter 286/300 Energy 230/250 System Corruption 2% Temperature Warm (118) Movement Treading (160) Location -10/Mines Parts ------- > --- POWER (1) -------- Ion Engine > --- PROPULSION (2) --- Light Treads Light Treads > --- UTILITY (2) ------ Disposable Heat Sink Large Storage Unit > --- WEAPON (2) ------- Particle Cannon Particle Cannon > --- INVENTORY (15) --- Ion Engine Light Treads Light Treads Light Treads Heat Sink Disposable Heat Sink Improved Terrain Scanner Seismic Detector Particle Cannon Particle Cannon Grenade Launcher Peak State ------------ > --- POWER ------------ Ion Engine > --- PROPULSION ------- Light Treads Light Treads > --- UTILITY ---------- Disposable Heat Sink Large Storage Unit > --- WEAPON ----------- Particle Cannon Particle Cannon > --- INVENTORY -------- Ion Engine Light Treads Light Treads Light Treads Light Treads Disposable Heat Sink Disposable Heat Sink Disposable Heat Sink Improved Terrain Scanner Seismic Detector Particle Cannon Particle Cannon Grenade Launcher [Rating: 12] Favorites ----------- Power Ion Engine Engine Ion Engine Propulsion Light Treads Treads Light Treads Leg Aluminum Leg Utility Disposable Heat Sink Device Disposable Heat Sink Storage Large Storage Unit Processor Signal Interpreter Weapon Particle Cannon Energy Gun EM Pulse Gun Energy Cannon Particle Cannon Ballistic Gun Assault Rifle Launcher Grenade Launcher Build | -11 -10 -10 ------- Run | Yrd Mat Min Slots Evolved . | . . . Power . | . . . Propulsion . | . . . Utility . | . . . Weapon . | . . . Parts Attached 27 | 8 15 4 Power 3 | 1 1 1 Engine 3 | 1 1 1 Core . | . . . Reactor . | . . . Propulsion 9 | 3 5 1 Treads 5 | 1 3 1 Leg 4 | 2 2 . Wheel . | . . . Hover . | . . . Flight . | . . . Utility 9 | 2 5 2 Device 5 | 1 2 2 Storage 3 | 1 2 . Processor 1 | . 1 . Hackware . | . . . Protection . | . . . Artifact . | . . . Weapon 6 | 2 4 . Energy Gun 2 | 2 . . Energy Cannon 2 | . 2 . Ballistic Gun 1 | . 1 . Ballistic Cannon . | . . . Launcher 1 | . 1 . Special Weapon . | . . . Impact Weapon . | . . . Slashing Weapon . | . . . Piercing Weapon . | . . . Special Melee Weapon . | . . . Unidentified Prototypes . | . . . Parts Lost 6 | . 5 1 Power . | . . . Propulsion 2 | . 1 1 Utility 1 | . 1 . Weapon 3 | . 3 . Highest Loss Streak 3 | . 3 1 To Critical Strikes . | . . . Average Slot Usage (%) 98 | . 97 99 Engine 14 | . 14 14 Treads 22 | . 16 28 Leg 5 | . 10 . Device 11 | . 12 10 Storage 14 | . 14 14 Processor 2 | . 1 2 Energy Gun 2 | . 5 . Energy Cannon 23 | . 19 28 Naked Turns . | . . . Heaviest Build 34 | 15 34 34 Greatest Support 40 | 20 40 40 Greatest Overweight (x) 2 | 2 1 1 Average Overweight (x) . | . . . Largest Inventory Capacity 15 | 8 15 15 Average Capacity 12 | 7 11 15 Most Carried 13 | 4 13 13 Average Carried 9 | 3 8 12 Final Capacity 15 | 8 15 15 Final Carried 13 | 4 13 11 Class Distribution -------------------- 100% | Mutant Dominant Class ---------------- Mutant | -10/Materials Mutant | -10/Mines Resources | -11 -10 -10 ----------- Run | Yrd Mat Min Matter Collected 601 | 270 274 57 Remotely . | . . . Salvage Created 1765 | 314 930 521 Parts 109 | 26 57 26 Haulers Intercepted 2 | . 2 . Recyclers Shooed 2 | 1 . 1 Parts Field Recycled . | . . . Retrieved Matter . | . . . Parts Self-Destructed . | . . . Prevented . | . . . Kills | -11 -10 -10 ------- Run | Yrd Mat Min Combat Hostiles Destroyed 28 | . 15 13 Guns 7 | . 7 . Cannons 18 | . 5 13 AOE 3 | . 3 . Classes Destroyed 9 | 3 4 2 Worker 8 | 2 4 2 Tunneler 10 | 8 1 1 Hauler 2 | . 2 . Recycler 2 | 1 . 1 Operator 1 | . 1 . Watcher 3 | . 3 . Swarmer 5 | . . 5 Grunt 21 | . 15 6 Assembled 2 | . . 2 Best Kill Streak 6 | 4 6 4 Combat Bots Only 5 | . 5 3 Max Kills in Single Turn 1 | 1 1 1 Gunslinging . | . . . Exploded 1 | . 1 . Melee . | . . . Uniques/NPCs Destroyed . | . . . Combat | -11 -10 -10 -------- Run | Yrd Mat Min Hostile Shots Fired 142 | . 82 60 Missed 26 | . 19 7 Damage Taken 1457 | 26 856 575 Core 258 | 13 158 87 Absorbed by Shields . | . . . Core Remaining (%) 94 | 94 . . Volleys Fired 151 | 25 71 55 Largest 2 | 2 2 2 Hottest 136 | 80 136 136 Shots Fired 274 | 50 114 110 Gun 114 | 50 64 . Cannon 156 | . 46 110 Launcher 4 | . 4 . Special . | . . . Kinetic 23 | . 23 . Thermal 156 | . 46 110 Explosive 4 | . 4 . Electromagnetic 91 | 50 41 . Robot Hit Streak 10 | 9 10 7 Robot Miss Streak 5 | 3 5 4 Penetration Max . | . . . Secondary Targets . | . . . Shots Hit Robots 141 | 26 65 50 Core Hits 66 | 12 36 18 Critical Kills . | . . . Critical Parts Destroyed . | . . . Critical Strikes 1 | . 1 . Corrupt 1 | . 1 . Melee Attacks . | . . . Impact . | . . . Slashing . | . . . Piercing . | . . . Sneak Attacks . | . . . Combat Hostiles . | . . . Follow-up Attacks . | . . . Damage Inflicted 2821 | 381 1324 1116 Guns 886 | 337 549 . Cannons 1651 | . 535 1116 Explosions 284 | 44 240 . Melee . | . . . Ramming . | . . . Kinetic 228 | . 228 . Thermal 1695 | 44 535 1116 Explosive 240 | . 240 . Electromagnetic 658 | 337 321 . Impact . | . . . Slashing . | . . . Piercing . | . . . Highest Corruption 2 | . 2 2 Average Corruption 1 | . 1 2 Corruption Purged . | . . . Corruption Blocked . | . . . Effects 27 | . 6 21 Message Errors 9 | . 2 7 Matter Fused 6 | . 1 5 Heat Flow Errors 1 | . . 1 Energy Discharges 3 | . . 3 Data Loss (minor) 5 | . 2 3 Data Loss (major) 2 | . 1 1 Alerts 1 | . . 1 Overload Shots . | . . . Overflow Damage 16 | 4 . 12 Projectiles 12 | . . 12 Explosions 4 | 4 . . Melee . | . . . Knockbacks . | . . . Impact . | . . . Kinetic . | . . . Secondary . | . . . Self-Inflicted Damage 56 | 27 29 . Shots 4 | 1 3 . Rammed . | . . . Targets Rammed . | . . . Kicked . | . . . Crushed . | . . . Highest Temperature 375 | 126 210 375 Average Temperature 93 | 49 79 117 Received Heat Transfer 608 | . 414 194 Siege Activations . | . . . Robots Corrupted . | . . . Combat Hostiles . | . . . Parts Fried 3 | 1 2 . Impact Corruptions . | . . . Robots Melted . | . . . Combat Hostiles . | . . . Parts Melted 3 | . . 3 Heat Transferred 2899 | 50 925 1924 Parts Sabotaged . | . . . Parts Stolen . | . . . Parts Stripped . | . . . Power Chain Reactions 1 | 1 . . Alert | -11 -10 -10 ------- Run | Yrd Mat Min Peak Influence 462 | 55 462 248 Initial 78 | . 35 78 Average 154 | 27 257 74 Maximum Alert Level 2 | . 2 1 Low Security (%) 56 | 100 12 93 Level 1 42 | . 86 6 Level 2 . | . . . Level 3 . | . . . Level 4 . | . . . Level 5 . | . . . High Security . | . . . Max Security . | . . . Squads Dispatched 4 | . 4 . Investigation 4 | . 4 . Extermination . | . . . Reinforcement . | . . . Assault . | . . . Garrison . | . . . Intercept . | . . . Searches Triggered . | . . . Construction Impeded . | . . . Haulers Reinforced . | . . . Active Scanning Responses . | . . . Cargo Convoy Interrupts . | . . . Stealth | -11 -10 -10 --------- Run | Yrd Mat Min Distress Signals 1 | . 1 . Communications Jammed . | . . . Distress Signals . | . . . Times Spotted 37 | . 22 15 Peak Tracking Total 6 | . 6 3 Tactical Retreats 1 | . . 1 Traps | -11 -10 -10 ------- Run | Yrd Mat Min Traps Triggered 6 | . 6 . Indirectly . | . . . Trap Hack Attempts . | . . . Triggered . | . . . Disarmed . | . . . Reprogrammed . | . . . Reused . | . . . Traps Extracted . | . . . Installed . | . . . Triggered . | . . . Machines | -11 -10 -10 ---------- Run | Yrd Mat Min Machines Disabled 7 | . 6 1 Max in Single Turn 1 | . 1 1 Machines Repaired . | . . . Machines Dismantled . | . . . Machines Sabotaged 1 | . 1 . Overloaded Fab Kills . | . . . Hacking | -11 -10 -10 --------- Run | Yrd Mat Min Machines Accessed 10 | . 10 . Terminals 8 | . 8 . Fabricators . | . . . Repair Stations . | . . . Recycling Units 2 | . 2 . Scanalyzers . | . . . Garrison Access . | . . . Total Hacks 23 | . 23 . Successful 11 | . 11 . Failed 12 | . 12 . Catastrophic 2 | . 2 . Database Lockouts . | . . . Manual 22 | . 22 . Terminals 21 | . 21 . Fabricators . | . . . Repair Stations . | . . . Recycling Units 2 | . 2 . Scanalyzers . | . . . Garrison Access . | . . . Terminal Hacks 6 | . 6 . Robot Analysis 2 | . 2 . Prototype ID Bank 1 | . 1 . Transport Status 1 | . 1 . Recall Investigation 1 | . 1 . Registered Prototypes 1 | . 1 . Fabricator Hacks . | . . . Repair Station Hacks . | . . . Recycling Unit Hacks . | . . . Scanalyzer . | . . . Garrison Access Hacks . | . . . Unauthorized Hacks 5 | . 5 . Terminals 3 | . 3 . Botnet 1 | . 1 . Detonate 1 | . 1 . Sabotage 1 | . 1 . Fabricators . | . . . Repair Stations . | . . . Recycling Units 2 | . 2 . Tunnel 2 | . 2 . Scanalyzers . | . . . Garrison Access . | . . . Data Cores Recovered . | . . . Used . | . . . Hacking Detections 7 | . 7 . Full Trace Events 2 | . 2 . Feedback Events . | . . . Feedback Blocked . | . . . Robot Schematics Acquired . | . . . Robots Built . | . . . Authchips . | . . . Time . | . . . Total Robot Build Rating . | . . . Part Schematics Acquired . | . . . Parts Built . | . . . Authchips . | . . . Time . | . . . Total Part Build Rating . | . . . Parts Repaired . | . . . Time . | . . . Parts Recycled . | . . . Recycled Matter . | . . . Retrieved Matter . | . . . Retrieved Components . | . . . Parts Scanalyzed . | . . . Part Schematics Acquired . | . . . Parts Damaged . | . . . Bothacking | -11 -10 -10 ------------ Run | Yrd Mat Min Used RIF Installer . | . . . Robots Hacked . | . . . Non-combat . | . . . Combat . | . . . Robot Hacks Applied . | . . . Relay Couplers Released . | . . . Fabnet Peak Effective % . | . . . Robots Rewired . | . . . Allies Hacked . | . . . Hacks Repelled . | . . . Allies | -11 -10 -10 -------- Run | Yrd Mat Min Total Allies . | . . . Largest Group . | . . . Highest-Rated Group . | . . . Highest-Rated Ally . | . . . Total Orders . | . . . Ally Attacks . | . . . Total Damage . | . . . Kills . | . . . Allies Corrupted . | . . . Allies Melted . | . . . Intel | -11 -10 -10 ------- Run | Yrd Mat Min Robot Analysis Total 2 | . 2 . Derelict Logs Recovered 1 | . . 1 Drone Launches . | . . . Drone Recoveries . | . . . Exploration | -11 -10 -10 ------------- Run | Yrd Mat Min Turns Passed 3045 | 261 1400 1384 Spaces Moved 1632 | 128 773 731 Core 9 | 9 . . Treads 1209 | 3 475 731 Legs 414 | 116 298 . Wheels . | . . . Hover . | . . . Flight . | . . . Fastest Speed 50 | 50 120 160 Average Speed 151 | 120 148 160 Slowest Speed 240 | 160 190 240 Overloaded Moves . | . . . Propulsion Burnouts . | . . . Robots Hopped . | . . . Cave-ins Triggered . | . . . Exploration Rate (%) 67 | 5 98 99 Regions Visited 2 Branch Regions 1 Pre-discovered Areas 3 | . 2 1 Known Exits Taken 1 | . 1 . Unknown Exits Taken 1 | 1 . . Scrap Searched 1 | . . 1 Spaces Dug 13 | . 13 . Terrain Destroyed 18 | 2 16 . Melee . | . . . Projectile . | . . . AOE 18 | 2 16 . Terrain Rammed . | . . . Walls Destroyed . | . . . Machines Disabled . | . . . Actions | -11 -10 -10 --------- Run | Yrd Mat Min Total 1925 | 181 909 835 Wait 88 | 17 29 42 Move 1630 | 127 772 731 Hop . | . . . Pick Up 19 | 3 14 2 Fast Attach 11 | 8 3 . Attach 5 | . 3 2 Detach 2 | 1 1 . Swap 11 | . 9 2 Drop 8 | . 7 1 Fire 151 | 25 71 55 Melee . | . . . Ram . | . . . Kick . | . . . Crush . | . . . Escape Stasis . | . . . Rewire . | . . . Trap . | . . . Miscellaneous . | . . . Route ------- -11/Scrapyard -10/Materials (discovered 4 exits: *Mat x3 / *Min) -10/Mines (discovered 4 exits: *Mat x2 / [*Exi] / [*Sub]) History --------- Turn | Location | Event 12 | -11/Scrapyard | Discovered new exit (range 15) 262 | -11/Scrapyard | Entered Materials 317 | -10/Materials | Build established: Mutant 562 | -10/Materials | Lost 3 parts (1n2w) 643 | -10/Materials | Core integrity fell below 50% 843 | -10/Materials | Discovered new exit (range 8) 936 | -10/Materials | Discovered new exit (range 13) 1136 | -10/Materials | Discovered new exit (range 13) 1307 | -10/Materials | Discovered new exit (range 16) 1596 | -10/Materials | Identified exit to Materials 1656 | -10/Materials | Identified exit to Mines 1662 | -10/Materials | Entered Mines 1911 | -10/Mines | Excavation squad dispatched 1911 | -10/Mines | A large section of the Mines collapsed 2127 | -10/Mines | Discovered exit to Materials (range 14) 2170 | -10/Mines | Learned location of Zion (-6) 2303 | -10/Mines | Core integrity fell below 20% 2321 | -10/Mines | Discovered exit to Materials (range 9) 2475 | -10/Mines | Deemed a non-threat by the Exiles lab entrance 2475 | -10/Mines | Discovered new exit (range 5) 2964 | -10/Mines | Discovered new exit (range 3) 3046 | -10/Mines | Destroyed by Y-45 Defender with Heavy Assault Rifle Last Messages --------------- 02699_ T&R 9NHHF|KT8KW%STFA/A &J, 02705_ Destroyed Structural Scanner. 02732_ as-27914 destroyed. 02818_ Wheel melted. 02818_ K-01 Serf destroyed. 02829_ Disposable Heat Sink melts away. 02831_ System corrupted: Matter fused (-5). 02831_ Extracted 15 matter. 02837_ G-47 Trooper destroyed. 02843_ G-34 Mercenary destroyed. 02854_ System corrupted: Heat flow error (+230). 02915_ U-05 Engineer builds a Wall. 02934_ System corrupted: Matter fused (-9). 02937_ Acquired Heat Sink. 02959_ U-05 Engineer lays Concrete. 02964_ EXIT=FOUND 02964_ U-05 Engineer forms the Earth. 03023_ %&KQ7:C1BYTL0ITNY7==%PD5S%%5XLEMN 03024_ Critical hit (Burn: +37). 03024_ Lgt. Treads destroyed. Map ----- +----------------------------------------------------+ | ?????????????????????????##=### #????# | | ??????????????????????????#!*% #????# | | ??????????????????????????#%#####????# | | ??????????????????????????#*#????????# | | ??????????????#############%#????????# | | ??????????????# *= ######??## | | ??????????????# """ %|| !#??# | | ??????????????# """ #######%#### | | ??????????????# < """ %#?????# % | | ??????????????# =%#?????# ##### | | ??????????????# #?????# #???? | | ??????????????# #?????# #???? | | ??????????????############?????#%#???? | | ???????????????????????????????#%#???? | | ???????????????????????????????#%#???# | | ?###?######????????????????????#=#???# | | ##!]## ##???????????????????#%#??## | | #"!| # #???????????????????#=#### | | # + #??????????????????##= ##" | | # / #???????????????##### ! | | #"[! # #########??????## #=%* | | ?#!?## #??????# *=! %=# | | ????# # u ######?# *!" % # | | ????## ######Y## #?##!!% ###" " | | ?????####???##Y## #?## %= ##?## | | ??????????###@ ###### #### ####???# | | ?????????## #???# ## #"#"#????# | | ?????????# ##??# "% "#?????# | | ?????????# #??##########?????# | | ?????????## ##??### ## ??????## | | ??????????# #### #####?????## | | ??????????# # #??????# | | ??????????## ## #???????? | | ???????????###### #???????? | | ????????????????# ##???????? | | ???????????????## ##???????? | | ??????????????## #???????? | | ??????????????# #???????? | | ?????????????## ## # #???????? | | ?????????????# ### ## ##???????? | | ?????????????# ##?# #?####????????? | | ?????????????## ##??# #?????????????? | | ?????????????< ##???# #?????????????? | | ?????????????###????# ############### | | ?????????????###????# [!%==== | | ????????????????????################## | | ?????????????????????????????????????? | | ?????????????????????????????????????? | | ?????????????????????????????????????? | | ?????????????????????????????????????? | +----------------------------------------------------+ Best States ------------- Heat Dissipation 25 Coolant Potential 50 Energy Generation 10 Energy Capacity 250 Matter Stores 300 Matter Capacity 300 Sight Range 16 Terrain Scan Density 10 Evasion (%) 55 Recoil Reduction 2 Item Schematics ----------------- None Robot Schematics ------------------ None Fabricated ------------ Nothing Alien Tech Used ----------------- None Achievements -------------- None Challenges ------------ None Game ------ Seed GammaWaveModule Manual? 0 Play Time 00:21:13 Cumulative 71.2 hours Start 2024.04.27 @ 17:50:54 End 2024.04.27 @ 18:13:31 Sessions 1 Manual Loads 0 Difficulty Rogue Special Mode None Game No. 77 Rogue 77 Adventurer 0 Explorer 0 Win Type - Total 0 Types 0/0/0/0/0/0/0/0/0 Lore% 36 Gallery% 51 Achievement% 37 Wizard Run 0 Options --------- Layout 0 ASCII 0 Keyboard 0 Movement Mouse Keybinds 0 Fullscreen 2 Font 24/Smallcaps Map View 183x50 Zoom Use 0% Tactical HUD 1 Map Filters NONE Filters NONE Steam 0 RUN: e0e773be-d11c-411e-8c9b-a6b9e73f6f11